bitfinex/quotes_BTCUSD_20250809
["timestamp","ask_amount","ask_price","bid_price","bid_amount"]
[1754717157226,0.17099824,116970.0,116960.0,1.79473195]
[1754717157446,0.17095824,116970.0,116960.0,2.21662706]
[1754717157789,0.17095824,116970.0,116960.0,1.37283684]
[1754717157991,0.17095824,116970.0,116960.0,2.21662706]
[1754717159864,0.17951785,116980.0,116960.0,2.21662706]
[1754717160067,0.17098401,116970.0,116960.0,1.13524654]
[1754717160187,0.17098401,116970.0,116960.0,2.21301887]
[1754717160595,0.17098401,116970.0,116960.0,2.21101887]
[1754717160804,0.17098401,116970.0,116960.0,2.21423887]
[1754717161025,0.17098401,116970.0,116960.0,2.21623887]
[1754717161697,0.17030351,116970.0,116960.0,2.21823887]
[1754717162182,0.17030351,116970.0,116960.0,1.37544865]
[1754717162400,0.17030351,116970.0,116960.0,2.21923887]
[1754717162598,0.17030351,116970.0,116960.0,2.21823887]
[1754717162960,0.17030351,116970.0,116960.0,2.21923887]
[1754717163170,0.17030351,116970.0,116960.0,1.37544865]
[1754717163357,0.17030351,116970.0,116960.0,2.21923887]
[1754717163604,0.17951785,116980.0,116960.0,2.21923887]
[1754717163845,0.17098401,116970.0,116960.0,1.56014165]
[1754717164036,0.17098401,116970.0,116960.0,1.79400376]
[1754717164364,0.17098401,116970.0,116960.0,1.79722376]
[1754717165024,0.17098401,116970.0,116960.0,2.21911887]
[1754717165338,0.1504603,116970.0,116960.0,2.21911887]
[1754717165758,0.17951785,116980.0,116960.0,2.21911887]
[1754717165965,0.17951785,116980.0,116970.0,0.65575722]
[1754717166182,0.17951785,116980.0,116970.0,0.66111722]
[1754717167400,0.16925613,116980.0,116970.0,0.66111722]
[1754717167568,0.16925613,116980.0,116970.0,0.66211722]
[1754717171596,0.17123613,116980.0,116970.0,0.65675722]
[1754717172945,0.17123613,116980.0,116970.0,0.23486211]
[1754717173153,0.17123613,116980.0,116970.0,0.65675722]
[1754717173275,0.17123613,116980.0,116970.0,0.65997722]
[1754717173505,0.17123613,116980.0,116970.0,0.65811722]
[1754717173704,0.17123613,116980.0,116970.0,0.23622211]
[1754717173951,0.17123613,116980.0,116970.0,0.65811722]
[1754717174144,0.17123613,116980.0,116970.0,0.85275722]
[1754717175632,0.17123613,116980.0,116970.0,0.85597722]
[1754717175961,0.17123613,116980.0,116970.0,0.85811722]
[1754717177872,0.17951785,116980.0,116970.0,1.36910123]
[1754717178684,0.17951785,116980.0,116970.0,0.94720612]
[1754717178888,0.17951785,116980.0,116970.0,1.36910123]
[1754717180605,0.17951785,116980.0,116970.0,1.19811722]
[1754717181296,0.17951785,116980.0,116970.0,1.36910123]
[1754717182132,0.1854711,116990.0,116970.0,1.39584766]
[1754717182309,0.1854711,116990.0,116980.0,0.57154511]
[1754717182520,0.1854711,116990.0,116980.0,0.66048722]
[1754717184034,0.1864711,116990.0,116980.0,0.66048722]
[1754717184454,0.1883911,116990.0,116980.0,0.65515722]
[1754717185774,0.1893911,116990.0,116980.0,0.6812438]
[1754717185988,0.1893911,116990.0,116980.0,0.6844938]
[1754717186210,0.1893911,116990.0,116980.0,0.6865738]
[1754717187502,0.1893911,116990.0,116980.0,0.26467869]
[1754717187703,0.1893911,116990.0,116980.0,0.6865738]
[1754717188335,0.1893911,116990.0,116980.0,0.26467869]
[1754717188575,0.1893911,116990.0,116980.0,0.6812438]
[1754717189023,0.1913111,116990.0,116980.0,0.25934869]
[1754717189452,0.1913111,116990.0,116980.0,0.08686211]
[1754717189660,0.1913111,116990.0,116980.0,0.23306211]
[1754717191833,0.1893911,116990.0,116980.0,0.23306211]
[1754717192038,0.1893911,116990.0,116980.0,0.65495722]
[1754717196689,0.1893911,116990.0,116980.0,0.08686211]
[1754717196986,0.1913111,116990.0,116980.0,0.23286211]
[1754717198265,0.1893911,116990.0,116980.0,0.23286211]
[1754717199943,0.1893911,116990.0,116980.0,0.65475722]
[1754717200385,0.2150591,116990.0,116980.0,0.65475722]
[1754717200995,0.2150591,116990.0,116980.0,0.65800722]
[1754717201828,0.2150591,116990.0,116980.0,0.66008722]
[1754717203087,0.2150591,116990.0,116980.0,0.23819211]
[1754717203285,0.2150591,116990.0,116980.0,0.66008722]
[1754717203931,0.2131391,116990.0,116980.0,0.66008722]
[1754717204136,0.2131391,116990.0,116980.0,0.83105661]
[1754717204342,0.2131391,116990.0,116980.0,0.66008722]
[1754717204975,0.2121391,116990.0,116980.0,0.68537094]
[1754717205188,0.1864711,116990.0,116980.0,0.68537094]
[1754717205423,0.2121371,116990.0,116980.0,0.68537094]
[1754717205833,0.1854711,116990.0,116980.0,0.68537094]
[1754717206036,0.1854711,116990.0,116980.0,0.26347583]
[1754717206263,0.1854711,116990.0,116980.0,0.68537094]
[1754717206480,0.2111371,116990.0,116980.0,0.68537094]
[1754717206692,0.2111371,116990.0,116980.0,0.68637094]
[1754717206901,0.2111371,116990.0,116980.0,0.85734033]
[1754717207106,0.1854711,116990.0,116980.0,0.43544522]
[1754717207314,0.1854711,116990.0,116980.0,0.85734033]
[1754717209058,0.005915,116990.0,116980.0,0.85734033]
[1754717209693,0.005915,116990.0,116980.0,0.43544522]
[1754717209911,0.005915,116990.0,116980.0,0.85734033]
[1754717210113,0.005915,116990.0,116980.0,0.43544522]
[1754717210531,0.005915,116990.0,116980.0,0.85734033]
[1754717212817,0.17686978,116990.0,116980.0,0.43544522]
[1754717213033,0.17686978,116990.0,116980.0,0.85734033]
[1754717213460,0.005915,116990.0,116980.0,0.85734033]
[1754717214192,0.005915,116990.0,116980.0,2.10248446]
[1754717214438,0.005915,116990.0,116980.0,2.12923089]
[1754717215376,0.005915,116990.0,116980.0,2.32777794]
[1754717216575,0.005915,116990.0,116980.0,1.90588283]
[1754717217201,0.005915,116990.0,116980.0,1.93154383]
[1754717217602,0.00569782,116990.0,116980.0,1.93154383]
[1754717218208,0.00569782,116990.0,116980.0,2.35343894]
[1754717219051,0.00122548,116990.0,116980.0,2.35343894]
[1754717219504,0.00122548,116990.0,116980.0,2.08763894]
[1754717219902,0.00122548,116990.0,116980.0,2.08663894]
[1754717220951,0.00122548,116990.0,116980.0,2.11763894]
[1754717221303,0.00122548,116990.0,116980.0,2.11563894]
[1754717221500,0.00122548,116990.0,116980.0,1.22310229]
[1754717221700,0.00122548,116990.0,116980.0,1.7939035]
[1754717222001,0.00122548,116990.0,116980.0,2.21579861]
[1754717222254,0.00122548,116990.0,116980.0,1.37200839]
[1754717222390,0.00122548,116990.0,116980.0,2.21579861]
[1754717222598,0.00122548,116990.0,116980.0,2.24254504]
[1754717225939,0.00122548,116990.0,116980.0,2.50834504]
[1754717226949,0.00026999,116990.0,116980.0,2.50834504]
[1754717228408,0.00026999,116990.0,116980.0,2.26754504]
[1754717228552,0.00026999,116990.0,116980.0,2.06899799]
[1754717229380,0.00026999,116990.0,116980.0,2.15928799]
[1754717229556,0.00026999,116990.0,116980.0,2.06899799]
[1754717229764,0.00026999,116990.0,116980.0,2.06199799]
[1754717229959,0.0005,117000.0,116990.0,0.9034038]
[1754717230164,0.0005,117000.0,116990.0,2.20880142]
[1754717231193,0.0005,117000.0,116990.0,2.21080142]
[1754717231390,0.0005,117000.0,116990.0,2.23845442]
[1754717231812,0.0005,117000.0,116990.0,2.09333442]
[1754717232011,0.0005,117000.0,116990.0,2.23841442]
[1754717233099,0.0005,117000.0,116990.0,2.17767897]
[1754717233338,0.0005,117000.0,116990.0,2.19512799]
[1754717233484,0.0005,117000.0,116990.0,2.22187442]
[1754717234997,0.00010531,117000.0,116990.0,2.22187442]
[1754717236038,0.00010531,117000.0,116990.0,1.3780842]
[1754717236257,0.00010531,117000.0,116990.0,2.19512799]
[1754717236671,0.00208531,117000.0,116990.0,2.19512799]
[1754717237105,0.17302548,117000.0,116990.0,1.35133777]
[1754717237313,0.17302548,117000.0,116990.0,1.5973281]
[1754717237520,0.17302548,117000.0,116990.0,1.7462342]
[1754717237732,0.17302548,117000.0,116990.0,1.91718898]
[1754717238019,0.17302548,117000.0,116990.0,2.33908409]
[1754717238234,0.00208531,117000.0,116990.0,2.33908409]
[1754717238457,0.00208531,117000.0,116990.0,2.14413523]
[1754717238887,0.00208531,117000.0,116990.0,2.14610523]
[1754717239084,0.00010531,117000.0,116990.0,2.17285166]
[1754717239772,0.00010531,117000.0,116990.0,2.37078052]
[1754717240414,0.00010531,117000.0,116990.0,2.34403409]
[1754717241047,0.00010531,117000.0,116990.0,2.36228052]
[1754717241246,0.00010531,117000.0,116990.0,2.56740052]
[1754717242301,0.00010531,117000.0,116990.0,2.14550541]
[1754717242512,0.00010531,117000.0,116990.0,2.56740052]
[1754717243247,2.223e-05,117000.0,116990.0,2.56740052]
[1754717243474,2.223e-05,117000.0,116990.0,1.7236103]
[1754717243675,0.00200223,117000.0,116990.0,1.9894103]
[1754717243872,0.1729424,117000.0,116990.0,2.80645409]
[1754717244110,0.00200223,117000.0,116990.0,2.80150409]
[1754717244366,0.00200223,117000.0,116990.0,2.80674409]
[1754717244575,2.223e-05,117000.0,116990.0,2.83349052]
[1754717245539,0.00217223,117000.0,116990.0,2.83349052]
[1754717245793,2.223e-05,117000.0,116990.0,2.83349052]
[1754717246153,2.223e-05,117000.0,116990.0,2.84179052]
[1754717249387,2.223e-05,117000.0,116990.0,2.64386166]
[1754717250030,2.223e-05,117000.0,116990.0,2.22196655]
[1754717250377,0.00200223,117000.0,116990.0,2.22196655]
[1754717251027,2.223e-05,117000.0,116990.0,2.22196655]
[1754717251232,0.1729024,117000.0,116990.0,1.77332501]
[1754717251460,0.1729024,117000.0,116990.0,2.38523231]
[1754717251889,0.00198,117000.0,116990.0,2.38523231]
[1754717252137,0.00198,117000.0,116990.0,1.9633372]
[1754717252345,0.00198,117000.0,116990.0,2.80712742]
[1754717252545,0.17092685,117010.0,117000.0,0.17094017]
[1754717252755,0.17290685,117010.0,117000.0,1.2463125]
[1754717253494,0.16264864,117010.0,117000.0,1.2719705]
[1754717253732,0.16272943,117010.0,117000.0,1.2751705]
[1754717254072,0.16272943,117010.0,117000.0,1.2761705]
[1754717254279,0.16272943,117010.0,117000.0,1.2867105]
[1754717254733,0.16272943,117010.0,117000.0,1.2877105]
[1754717254957,0.16272943,117010.0,117000.0,0.44392028]
[1754717255369,0.16272943,117010.0,117000.0,1.2877105]
[1754717255504,0.16272943,117010.0,117000.0,1.5535105]
[1754717256085,0.16272943,117010.0,117000.0,1.5278525]
[1754717256277,0.16272943,117010.0,117000.0,1.72636469]
[1754717257579,0.16272943,117010.0,117000.0,1.5278525]
[1754717257790,0.16272943,117010.0,117000.0,0.68406228]
[1754717257998,0.16272943,117010.0,117000.0,1.5278525]
[1754717258678,0.16272943,117010.0,117000.0,0.68406228]
[1754717258922,0.16074943,117010.0,117000.0,1.5278525]
[1754717259139,0.16074943,117010.0,117000.0,0.68406228]
[1754717259365,0.16074943,117010.0,117000.0,1.5278525]
[1754717260097,0.16074943,117010.0,117000.0,1.72636469]
[1754717260334,0.16074943,117010.0,117000.0,1.71786469]
[1754717261062,0.16074943,117010.0,117000.0,1.72636469]
[1754717261738,0.16093943,117010.0,117000.0,1.72636469]
[1754717261957,0.16093943,117010.0,117000.0,1.30446958]
[1754717262160,0.16093943,117010.0,117000.0,1.72636469]
[1754717262772,0.16093943,117010.0,117000.0,0.88257447]
[1754717263014,0.16093943,117010.0,117000.0,1.72636469]
[1754717263794,0.16093943,117010.0,117000.0,1.30446958]
[1754717264005,0.16093943,117010.0,117000.0,1.54372452]
[1754717264124,0.16093943,117010.0,117000.0,1.54692452]
[1754717264328,0.16093943,117010.0,117000.0,1.71786469]
[1754717264555,0.16074943,117010.0,117000.0,1.72636469]
[1754717266274,0.16074943,117010.0,117000.0,1.71786469]
[1754717266595,0.16289943,117010.0,117000.0,1.71786469]
[1754717267645,0.16289943,117010.0,117000.0,1.54692452]
[1754717267932,0.16289943,117010.0,117000.0,1.12502941]
[1754717268787,0.16289943,117010.0,117000.0,1.33014941]
[1754717269418,0.16289943,117010.0,117000.0,1.50108958]
[1754717269860,0.16074943,117010.0,117000.0,1.50108958]
[1754717270070,0.16074943,117010.0,117000.0,1.92298469]
[1754717271520,0.16074943,117010.0,117000.0,1.93148469]
[1754717271734,0.16074943,117010.0,117000.0,1.08769447]
[1754717271921,0.16074943,117010.0,117000.0,1.93148469]
[1754717272142,0.14023303,117010.0,117000.0,1.93148469]
[1754717272537,8.079e-05,117010.0,117000.0,2.14893371]
[1754717272835,8.079e-05,117010.0,117000.0,2.17568014]
[1754717275183,8.079e-05,117010.0,117000.0,1.33188992]
[1754717275385,8.079e-05,117010.0,117000.0,2.17568014]
[1754717276926,8.079e-05,117010.0,117000.0,2.16718014]
[1754717277839,8.079e-05,117010.0,117000.0,2.00216795]
[1754717278019,8.079e-05,117010.0,117000.0,2.02781995]
[1754717278681,8.079e-05,117010.0,117000.0,2.13051839]
[1754717279533,8.079e-05,117010.0,117000.0,1.86471839]
[1754717280192,1.334e-05,117010.0,117000.0,1.86471839]
[1754717280809,1.334e-05,117010.0,117000.0,1.75953901]
[1754717283686,0.17118875,117040.0,117030.0,0.3489061]
[1754717283891,0.17364115,117040.0,117030.0,1.00066285]
[1754717284108,0.17364115,117040.0,117030.0,0.58000821]
[1754717284326,0.17364115,117040.0,117030.0,1.00066285]
[1754717284549,0.17364115,117040.0,117030.0,0.58000821]
[1754717284771,0.17364115,117040.0,117030.0,1.00066285]
[1754717284993,0.17464115,117040.0,117030.0,1.00066285]
[1754717286719,0.17272115,117040.0,117030.0,1.00066285]
[1754717287717,0.17272115,117040.0,117030.0,1.00935615]
[1754717288155,0.17272115,117040.0,117030.0,1.27515615]
[1754717288603,0.17272115,117040.0,117030.0,0.85450151]
[1754717288836,0.17272115,117040.0,117030.0,1.27515615]
[1754717289673,0.17272115,117040.0,117030.0,0.85450151]
[1754717289888,0.17272115,117040.0,117030.0,1.27515615]
[1754717291157,0.17272115,117040.0,117030.0,0.85450151]
[1754717291830,0.17272115,117040.0,117030.0,1.27515615]
[1754717292261,0.17272115,117040.0,117030.0,0.85450151]
[1754717292461,0.17272115,117040.0,117030.0,1.27515615]
[1754717292876,0.17464115,117040.0,117030.0,0.50543541]
[1754717293924,0.20029615,117040.0,117030.0,0.50543541]
[1754717294125,0.20029615,117040.0,117030.0,0.23963541]
[1754717295682,0.20029615,117040.0,117030.0,0.23094211]
[1754717295903,0.20029615,117040.0,117030.0,0.08686211]
[1754717296118,0.20029615,117040.0,117030.0,0.23090211]
[1754717297033,0.20029615,117040.0,117030.0,0.2393823]
[1754717297668,0.20029615,117040.0,117030.0,0.23090211]
[1754717299679,0.19837615,117040.0,117030.0,0.23945425]
[1754717300755,0.08516426,117040.0,117030.0,0.23945425]
[1754717302092,0.08708426,117040.0,117030.0,0.23090211]
[1754717303190,0.08516426,117040.0,117030.0,0.54646585]
[1754717304501,0.402648,117040.0,117030.0,0.23090211]
[1754717304727,0.402648,117040.0,117030.0,0.23941965]
[1754717304942,0.71821174,117040.0,117030.0,0.08686211]
[1754717305163,0.71821174,117040.0,117030.0,0.23082211]
[1754717305387,0.17089635,117030.0,117020.0,0.008467]
[1754717305604,0.17092556,117010.0,117000.0,1.45791956]
[1754717305824,0.17092556,117010.0,117000.0,1.25403195]
[1754717306716,0.17092556,117010.0,117000.0,0.9472074]
[1754717306927,0.17092556,117010.0,117000.0,1.36806695]
[1754717307366,0.17092556,117010.0,117000.0,0.6543813]
[1754717307584,0.17092556,117010.0,117000.0,0.88016085]
[1754717307831,0.17092556,117010.0,117000.0,0.4593013]
[1754717308063,0.17092556,117010.0,117000.0,0.88116085]
[1754717308277,0.17290556,117010.0,117000.0,0.3163813]
[1754717308491,0.17290556,117010.0,117000.0,0.4582313]
[1754717308700,0.17290556,117010.0,117000.0,0.4551413]
[1754717309127,0.17290556,117010.0,117000.0,0.3112213]
[1754717309344,0.17290556,117010.0,117000.0,0.4551413]
[1754717309974,0.17290556,117010.0,117000.0,0.73208085]
[1754717310204,0.17290556,117010.0,117000.0,0.4551013]
[1754717311212,0.19856756,117010.0,117000.0,0.4551013]
[1754717311422,0.19856756,117010.0,117000.0,0.4466013]
[1754717311618,0.19856756,117010.0,117000.0,0.4496913]
[1754717312022,0.19856756,117010.0,117000.0,0.87055085]
[1754717312230,0.19856756,117010.0,117000.0,0.87262085]
[1754717313747,0.19856756,117010.0,117000.0,0.4517613]
[1754717313943,0.19856756,117010.0,117000.0,0.87262085]
[1754717314455,0.19856756,117010.0,117000.0,0.4517613]
[1754717314672,0.19856756,117010.0,117000.0,0.87262085]
[1754717315430,0.19856756,117010.0,117000.0,0.4517613]
[1754717315645,0.19856756,117010.0,117000.0,0.87262085]
[1754717315823,0.19658756,117010.0,117000.0,0.87262085]
[1754717316037,0.19658756,117010.0,117000.0,0.4517613]
[1754717316455,0.19658756,117010.0,117000.0,0.87262085]
[1754717317282,0.19658756,117010.0,117000.0,0.87162085]
[1754717318851,0.19658756,117010.0,117000.0,0.4497613]
[1754717319051,0.19658756,117010.0,117000.0,0.87062085]
[1754717320216,0.17092556,117010.0,117000.0,0.4497613]
[1754717320418,0.17092556,117010.0,117000.0,0.87062085]
[1754717320855,0.17092556,117010.0,117000.0,0.66550085]
[1754717321198,0.17092556,117010.0,117000.0,0.2446413]
[1754717321409,0.17092556,117010.0,117000.0,0.66550085]
[1754717322729,0.17092556,117010.0,117000.0,0.2446413]
[1754717323386,0.17092556,117010.0,117000.0,0.66550085]
[1754717324030,0.17092556,117010.0,117000.0,0.2446413]
[1754717324234,0.17092556,117010.0,117000.0,0.66550085]
[1754717324641,0.17092556,117010.0,117000.0,0.66534085]
[1754717325461,0.17092556,117010.0,117000.0,0.2444813]
[1754717325723,0.17092556,117010.0,117000.0,0.66534085]
[1754717326119,0.17092556,117010.0,117000.0,0.2444813]
[1754717326323,0.17092556,117010.0,117000.0,0.66534085]
[1754717327658,0.17092556,117010.0,117000.0,0.2444813]
[1754717327862,0.17092556,117010.0,117000.0,0.66534085]
[1754717328719,0.17092556,117010.0,117000.0,0.87569602]
[1754717331977,0.17092556,117010.0,117000.0,0.2444813]
[1754717332206,0.17092556,117010.0,117000.0,0.87569602]
[1754717334636,0.17092556,117010.0,117000.0,0.2444813]
[1754717334829,0.17092556,117010.0,117000.0,0.87569602]
[1754717340354,0.17092556,117010.0,117000.0,0.2444813]
[1754717340524,0.17092556,117010.0,117000.0,0.87569602]
[1754717341201,0.17092556,117010.0,117000.0,0.2444813]
[1754717341401,0.17092556,117010.0,117000.0,0.87569602]
[1754717342181,0.15839456,117010.0,117000.0,0.2444813]
[1754717342352,0.15839456,117010.0,117000.0,0.87569602]
[1754717342560,0.19658394,117020.0,117000.0,1.36224355]
[1754717342786,0.19658394,117020.0,117010.0,1.03571239]
[1754717343125,0.17091095,117020.0,117010.0,1.06449882]
[1754717343547,0.17091095,117020.0,117010.0,0.4332841]
[1754717343760,0.16065255,117020.0,117010.0,1.06449882]
[1754717344333,0.16065255,117020.0,117010.0,1.03775239]
[1754717344578,0.16065255,117020.0,117010.0,0.72314503]
[1754717344777,0.16065255,117020.0,117010.0,0.72414503]
[1754717345404,0.16065255,117020.0,117010.0,0.40853767]
[1754717345564,0.16065255,117020.0,117010.0,0.72414503]
[1754717346472,0.16065255,117020.0,117010.0,0.40853767]
[1754717346790,0.16065255,117020.0,117010.0,0.72414503]
[1754717347006,0.20510016,117030.0,117010.0,1.20610751]
[1754717347223,0.17944116,117030.0,117020.0,0.77461472]
[1754717347445,0.17944116,117030.0,117020.0,0.86674683]
[1754717348077,0.17944116,117030.0,117020.0,0.55113947]
[1754717349206,0.17944116,117030.0,117020.0,0.23553211]
[1754717349416,0.17944116,117030.0,117020.0,0.55113947]
[1754717349632,0.17944116,117030.0,117020.0,0.23553211]
[1754717349849,0.17944116,117030.0,117020.0,0.55113947]
[1754717350070,0.17944116,117030.0,117020.0,0.23553211]
[1754717350281,0.17944116,117030.0,117020.0,0.55113947]
[1754717350769,0.08218626,117040.0,117030.0,1.82055884]
[1754717350977,0.39974362,117040.0,117030.0,1.90742095]
[1754717351178,0.08413626,117040.0,117030.0,1.90742095]
[1754717351341,0.39974362,117040.0,117030.0,1.90742095]
[1754717351778,0.08413626,117040.0,117030.0,2.05078095]
[1754717352223,0.40174362,117040.0,117030.0,2.05078095]
[1754717352679,0.08613626,117040.0,117030.0,2.05078095]
[1754717352882,0.40174362,117040.0,117030.0,2.05078095]
[1754717353506,0.40274362,117040.0,117030.0,1.90742095]
[1754717353723,0.72027098,117040.0,117030.0,2.05074095]
[1754717353902,0.72027098,117040.0,117030.0,1.96387884]
[1754717356721,0.50989603,117040.0,117030.0,1.96387884]
[1754717358464,0.50797603,117040.0,117030.0,1.96387884]
[1754717358882,0.50989603,117040.0,117030.0,1.96387884]
[1754717359295,0.50797603,117040.0,117030.0,1.96387884]
[1754717361938,0.08713626,117040.0,117030.0,1.96707884]
[1754717362155,0.08713626,117040.0,117030.0,1.96913884]
[1754717363527,0.08518626,117040.0,117030.0,1.96913884]
[1754717368291,0.08518626,117040.0,117030.0,2.47684072]
[1754717368704,0.08518626,117040.0,117030.0,2.05600095]
[1754717372677,0.50602603,117040.0,117030.0,2.05600095]
[1754717372896,0.08518626,117040.0,117030.0,2.05600095]
[1754717375156,0.08518626,117040.0,117030.0,2.47684072]
[1754717375365,0.08518626,117040.0,117030.0,2.05600095]
[1754717376671,0.05952926,117040.0,117030.0,2.05600095]
[1754717380331,0.05952926,117040.0,117030.0,2.05660095]
[1754717381969,0.08518526,117040.0,117030.0,2.05660095]
[1754717394635,0.40074711,117040.0,117030.0,2.05660095]
[1754717396373,0.08518526,117040.0,117030.0,2.05660095]
[1754717399683,0.08518526,117040.0,117030.0,2.3721628]
[1754717400241,0.08518526,117040.0,117030.0,2.05660095]
[1754717400447,0.08518526,117040.0,117030.0,2.3721628]
[1754717401777,0.08518526,117040.0,117030.0,2.05660095]
[1754717401979,0.08518526,117040.0,117030.0,2.3721628]
[1754717402539,0.08518526,117040.0,117030.0,2.05660095]
[1754717402725,0.08518526,117040.0,117030.0,2.3721628]
[1754717403349,0.08518526,117040.0,117030.0,2.05660095]
[1754717403496,0.08518526,117040.0,117030.0,2.3721628]
[1754717404696,0.08518526,117040.0,117030.0,2.05660095]
[1754717404902,0.08518526,117040.0,117030.0,2.3721628]
[1754717405236,0.08518526,117040.0,117030.0,2.05660095]
[1754717405452,0.08518526,117040.0,117030.0,2.3721628]
[1754717405650,0.08518526,117040.0,117030.0,2.05660095]
[1754717405854,0.08518526,117040.0,117030.0,2.3721628]
[1754717407348,0.08518526,117040.0,117030.0,1.91328095]
[1754717407585,0.08518526,117040.0,117030.0,2.05588095]
[1754717411529,0.40074711,117040.0,117030.0,1.91328095]
[1754717411745,0.71826896,117040.0,117030.0,2.05374095]
[1754717411959,0.71826896,117040.0,117030.0,1.82115884]
[1754717412133,0.72018896,117040.0,117030.0,1.96367884]
[1754717412335,0.72018896,117040.0,117030.0,1.40867429]
[1754717412588,0.72018896,117040.0,117030.0,1.4490284]
[1754717413002,0.72018896,117040.0,117030.0,1.13413487]
[1754717413213,0.72018896,117040.0,117030.0,0.99161487]
[1754717413406,0.08806526,117040.0,117030.0,0.99161487]
[1754717413621,0.42606526,117040.0,117030.0,1.13413487]
[1754717413822,1.06318896,117040.0,117030.0,1.13413487]
[1754717414027,0.43206526,117040.0,117030.0,1.13413487]
[1754717414199,1.06318896,117040.0,117030.0,1.13413487]
[1754717414959,0.85295795,117040.0,117030.0,1.13413487]
[1754717415384,0.43206526,117040.0,117030.0,1.13413487]
[1754717415588,0.85295795,117040.0,117030.0,1.13413487]
[1754717416182,0.43206526,117040.0,117030.0,1.13413487]
[1754717416651,0.85295795,117040.0,117030.0,1.13413487]
[1754717417316,0.85103795,117040.0,117030.0,1.13413487]
[1754717418150,0.43014526,117040.0,117030.0,1.13413487]
[1754717418377,0.85103795,117040.0,117030.0,1.13413487]
[1754717420460,0.42818526,117040.0,117030.0,1.13947487]
[1754717420698,0.84907795,117040.0,117030.0,1.13947487]
[1754717420924,0.42818526,117040.0,117030.0,1.13947487]
[1754717421145,0.84907795,117040.0,117030.0,1.13947487]
[1754717425682,0.84907795,117040.0,117030.0,1.13413487]
[1754717425854,0.85101795,117040.0,117030.0,1.13413487]
[1754717426427,0.85101795,117040.0,117030.0,1.13718487]
[1754717427662,0.43012526,117040.0,117030.0,1.13718487]
[1754717427857,0.85101795,117040.0,117030.0,1.13932487]
[1754717429016,0.43012526,117040.0,117030.0,1.13932487]
[1754717429225,0.85101795,117040.0,117030.0,1.13932487]
[1754717430839,0.43012526,117040.0,117030.0,1.13932487]
[1754717431048,0.84907795,117040.0,117030.0,1.13932487]
[1754717431676,0.42818526,117040.0,117030.0,1.13932487]
[1754717431903,0.84907795,117040.0,117030.0,1.13932487]
[1754717432768,0.42818526,117040.0,117030.0,1.13932487]
[1754717432878,0.84907795,117040.0,117030.0,1.13932487]
[1754717433084,0.42818526,117040.0,117030.0,1.13932487]
[1754717433289,0.84907795,117040.0,117030.0,1.13932487]
[1754717436184,0.42818526,117040.0,117030.0,1.13932487]
[1754717436376,0.84907795,117040.0,117030.0,1.13932487]
[1754717436783,1.05946256,117040.0,117030.0,1.13932487]
[1754717437090,0.42818526,117040.0,117030.0,1.13932487]
[1754717437294,1.05946256,117040.0,117030.0,1.13932487]
[1754717438610,1.05952256,117040.0,117030.0,1.13932487]
[1754717439418,0.42824526,117040.0,117030.0,1.13932487]
[1754717439606,1.05952256,117040.0,117030.0,1.13932487]
[1754717440420,0.42824526,117040.0,117030.0,1.13932487]
[1754717440620,0.42818526,117040.0,117030.0,1.13932487]
[1754717440827,1.05946256,117040.0,117030.0,1.13932487]
[1754717441771,0.74382391,117040.0,117030.0,1.13932487]
[1754717443554,0.42818526,117040.0,117030.0,1.13932487]
[1754717443761,0.74382391,117040.0,117030.0,1.13932487]
[1754717445836,0.42818526,117040.0,117030.0,1.13932487]
[1754717445956,0.74382391,117040.0,117030.0,1.13932487]
[1754717446151,0.42818526,117040.0,117030.0,1.13932487]
[1754717446366,0.74382391,117040.0,117030.0,1.13932487]
[1754717448455,0.42818526,117040.0,117030.0,1.13932487]
[1754717448674,0.74382391,117040.0,117030.0,1.13932487]
[1754717450315,0.42818526,117040.0,117030.0,1.13932487]
[1754717450515,0.74382391,117040.0,117030.0,1.13932487]
[1754717452420,1.05946256,117040.0,117030.0,1.13932487]
[1754717452667,0.42818526,117040.0,117030.0,1.13932487]
[1754717452890,1.05946256,117040.0,117030.0,1.13932487]
[1754717453457,0.74580391,117040.0,117030.0,1.13932487]
[1754717454301,0.43016526,117040.0,117030.0,1.13932487]
[1754717454513,0.74580391,117040.0,117030.0,1.13932487]
[1754717454750,0.43016526,117040.0,117030.0,1.13932487]
[1754717455481,0.74580391,117040.0,117030.0,1.13932487]
[1754717455685,0.74580391,117040.0,117030.0,1.13413487]
[1754717456094,0.43016526,117040.0,117030.0,1.13413487]
[1754717456290,1.06144256,117040.0,117030.0,1.13413487]
[1754717457163,0.43016526,117040.0,117030.0,1.13413487]
[1754717457374,1.06144256,117040.0,117030.0,1.13413487]
[1754717457577,1.20332256,117040.0,117030.0,1.13413487]
[1754717457953,0.88768391,117040.0,117030.0,1.13413487]
[1754717458386,1.20332256,117040.0,117030.0,1.13413487]
[1754717458591,1.20332256,117040.0,117030.0,1.13726487]
[1754717458965,1.06144256,117040.0,117030.0,1.13706487]
[1754717459385,1.20328256,117040.0,117030.0,1.13706487]
[1754717459963,0.57200526,117040.0,117030.0,1.13706487]
[1754717460374,0.88764391,117040.0,117030.0,1.13706487]
[1754717461255,0.74580391,117040.0,117030.0,1.13706487]
[1754717461457,0.74580391,117040.0,117030.0,1.13918487]
[1754717461601,0.74382391,117040.0,117030.0,1.13918487]
[1754717461795,0.42818526,117040.0,117030.0,1.13918487]
[1754717461999,0.74382391,117040.0,117030.0,1.13918487]
[1754717463061,0.42818526,117040.0,117030.0,1.13918487]
[1754717463235,0.74382391,117040.0,117030.0,1.13918487]
[1754717463443,0.42818526,117040.0,117030.0,1.13918487]
[1754717463646,0.74382391,117040.0,117030.0,1.13918487]
[1754717463836,0.42818526,117040.0,117030.0,1.13918487]
[1754717464195,0.74382391,117040.0,117030.0,1.13918487]
[1754717465074,0.42818526,117040.0,117030.0,1.13918487]
[1754717465317,0.74382391,117040.0,117030.0,1.13918487]
[1754717466174,0.42818526,117040.0,117030.0,1.13918487]
[1754717466322,0.74382391,117040.0,117030.0,1.13918487]
[1754717470155,0.42818526,117040.0,117030.0,1.13918487]
[1754717470325,0.74382391,117040.0,117030.0,1.13918487]
[1754717471717,0.42818526,117040.0,117030.0,1.13918487]
[1754717471934,0.74382391,117040.0,117030.0,1.13918487]
[1754717472144,0.74580391,117040.0,117030.0,1.13918487]
[1754717472757,0.74580391,117040.0,117030.0,1.13393487]
[1754717473413,0.88744391,117040.0,117030.0,1.13393487]
[1754717473840,0.57180526,117040.0,117030.0,1.13393487]
[1754717474053,0.88744391,117040.0,117030.0,1.13393487]
[1754717474263,0.57180526,117040.0,117030.0,1.13706487]
[1754717474481,0.88744391,117040.0,117030.0,1.13706487]
[1754717474693,0.88744391,117040.0,117030.0,1.13393487]
[1754717475052,0.57180526,117040.0,117030.0,1.13605487]
[1754717475264,0.88744391,117040.0,117030.0,1.13918487]
[1754717475634,0.87546391,117040.0,117030.0,1.13918487]
[1754717477322,1.19110256,117040.0,117030.0,0.99666487]
[1754717477528,1.19308256,117040.0,117030.0,0.99141487]
[1754717478666,0.87546391,117040.0,117030.0,0.99666487]
[1754717479556,0.39382391,117040.0,117030.0,1.13818487]
[1754717479811,0.85286256,117040.0,117030.0,1.13293487]
[1754717481094,0.85286256,117040.0,117030.0,0.99141487]
[1754717481925,0.22158526,117040.0,117030.0,0.99141487]